fUSD/lending_fUSD_20250906
["ID","MTS","AMOUNT","RATE_DAILY","PERIOD"]
[383915039,1757172639545,-160.97,0.00022,2]
[383915040,1757172639555,-300.0,0.00022,2]
[383915041,1757172639564,-154.9938,0.00022,2]
[383915042,1757172639574,-2425.0,0.00022029,2]
[383915043,1757172639584,-151.62,0.00022067,2]
[383915044,1757172639593,-264527.64,0.00022077,2]
[383915045,1757172639603,-178.52795,0.00022077,7]
[383915046,1757172639612,-151.0,0.00022077,7]
[383915047,1757172639623,-178.52795,0.00022077,7]
[383915048,1757172639633,-178.52795,0.00022077,7]
[383915049,1757172639643,-178.52795,0.00022077,7]
[383915050,1757172639652,-5670.840407,0.00022077,7]
[383915051,1757172639662,-5670.840407,0.00022077,7]
[383915052,1757172639671,-5670.840407,0.00022077,7]
[383915053,1757172639680,-5670.840407,0.00022077,7]
[383915054,1757172639690,-766.482066,0.00022077,7]
[383915055,1757172639700,-766.482066,0.00022077,7]
[383915056,1757172639709,-766.482066,0.00022077,7]
[383915057,1757172639718,-766.482066,0.00022077,7]
[383915058,1757172639728,-151.0,0.00022077,7]
[383915059,1757172639737,-151.0,0.00022077,7]
[383915060,1757172639747,-151.0,0.00022077,7]
[383915061,1757172639757,-200.608152,0.00022077,7]
[383915062,1757172639766,-151.0,0.00022077,7]
[383915063,1757172639776,-151.0,0.00022077,7]
[383915064,1757172639786,-160.0,0.00022077,14]
[383915065,1757172639795,-160.0,0.00022077,14]
[383915066,1757172639805,-160.0,0.00022077,14]
[383915067,1757172639815,-160.0,0.00022077,14]
[383915068,1757172639824,-160.0,0.00022077,14]
[383915069,1757172639834,-160.0,0.00022077,14]
[383915070,1757172639844,-160.0,0.00022077,14]
[383915071,1757172639853,-160.0,0.00022077,14]
[383915072,1757172639863,-160.0,0.00022077,14]
[383915073,1757172639873,-160.0,0.00022077,14]
[383915074,1757172639883,-160.0,0.00022077,14]
[383915075,1757172639892,-160.0,0.00022077,14]
[383915076,1757172639902,-160.0,0.00022077,14]
[383915077,1757172639912,-160.0,0.00022077,14]
[383915078,1757172639921,-151.0,0.00022077,7]
[383915079,1757172639931,-160.0,0.00022077,14]
[383915080,1757172639941,-160.0,0.00022077,14]
[383915081,1757172639950,-160.0,0.00022077,14]
[383915082,1757172639959,-160.0,0.00022077,14]
[383915083,1757172639969,-160.0,0.00022077,14]
[383915084,1757172639979,-160.0,0.00022077,14]
[383915085,1757172639988,-160.0,0.00022077,14]
[383915086,1757172639998,-160.0,0.00022077,14]
[383915087,1757172640007,-160.0,0.00022077,14]
[383915088,1757172640016,-160.0,0.00022077,14]
[383915089,1757172640025,-160.0,0.00022077,14]
[383915090,1757172640034,-160.0,0.00022077,14]
[383915091,1757172640043,-151.0,0.00022077,7]
[383915092,1757172640053,-151.0,0.00022077,7]
[383915093,1757172640063,-160.0,0.00022077,14]
[383915094,1757172640072,-160.0,0.00022077,14]
[383915095,1757172640081,-160.0,0.00022077,14]
[383915096,1757172640091,-160.0,0.00022077,14]
[383915097,1757172640100,-160.0,0.00022077,14]
[383915098,1757172640110,-160.0,0.00022077,14]
[383915099,1757172640119,-160.0,0.00022077,14]
[383915100,1757172640129,-160.0,0.00022077,14]
[383915101,1757172640138,-160.0,0.00022077,14]
[383915102,1757172640148,-160.0,0.00022077,14]
[383915103,1757172640158,-160.0,0.00022077,14]
[383915104,1757172640168,-160.0,0.00022077,14]
[383915105,1757172640178,-160.0,0.00022077,14]
[383915106,1757172640188,-160.0,0.00022077,14]
[383915107,1757172640197,-160.0,0.00022077,14]
[383915108,1757172640206,-160.0,0.00022077,14]
[383915109,1757172640216,-160.0,0.00022077,14]
[383915110,1757172640226,-160.0,0.00022077,14]
[383915111,1757172640239,-160.0,0.00022077,14]
[383915112,1757172640250,-160.0,0.00022077,14]
[383915113,1757172640266,-160.0,0.00022077,14]
[383915114,1757172640275,-160.0,0.00022077,14]
[383915115,1757172640285,-160.0,0.00022077,14]
[383915116,1757172640294,-160.0,0.00022077,14]
[383915118,1757172640303,-160.0,0.00022077,14]
[383915120,1757172640316,-160.0,0.00022077,14]
[383915121,1757172640331,-160.0,0.00022077,14]
[383915122,1757172640342,-160.0,0.00022077,14]
[383915123,1757172640352,-160.0,0.00022077,14]
[383915124,1757172640361,-160.0,0.00022077,14]
[383915126,1757172640371,-160.0,0.00022077,14]
[383915127,1757172640381,-160.0,0.00022077,14]
[383915128,1757172640391,-160.0,0.00022077,14]
[383915129,1757172640401,-160.0,0.00022077,14]
[383915130,1757172640411,-160.0,0.00022077,14]
[383915131,1757172640421,-160.0,0.00022077,14]
[383915132,1757172640431,-160.0,0.00022077,14]
[383915133,1757172640441,-160.0,0.00022077,14]
[383915134,1757172640451,-160.0,0.00022077,14]
[383915135,1757172640460,-160.0,0.00022077,14]
[383915136,1757172640470,-160.0,0.00022077,14]
[383915137,1757172640480,-160.0,0.00022077,14]
[383915138,1757172640490,-160.0,0.00022077,14]
[383915139,1757172640501,-485.31508144,0.000221,2]
[383915140,1757172640511,-2217.0,0.000221,7]
[383915141,1757172640520,-758.68,0.000221,7]
[383915142,1757172640531,-235.84666585,0.0002211,2]
[383915143,1757172640541,-2500.0,0.00022164,2]
[383915144,1757172640551,-2000.0,0.0002223,2]
[383915145,1757172640561,-2000.0,0.0002223,2]
[383915146,1757172640570,-519.05042126,0.00022311,2]
[383915147,1757172640579,-2000.0,0.00022311,2]
[383915148,1757172640589,-506.25468023,0.00022311,2]
[383915149,1757172640598,-162.27,0.00022318,2]
[383915150,1757172640607,-1637.12807444,0.00022411,2]
[383915151,1757172640618,-34827.42175132,0.000225,2]
[383915152,1757172640629,-3000.0,0.00022712,2]
[383915153,1757172640639,-2500.0,0.00022778,2]
[383915154,1757172640649,-2007.55768859,0.00022778,2]
[383915155,1757172640659,-3722.24,0.00022825,2]
[383915156,1757172640668,-852.58816085,0.00022858,2]
[383915157,1757172640678,-300.0,0.0002293,2]
[383915158,1757172640687,-224.27,0.00022963,2]
[383915159,1757172640696,-500.43253239,0.00023125,2]
[383915160,1757172640706,-301.07371007,0.00023125,2]
[383915161,1757172640716,-500.0,0.00023125,2]
[383915162,1757172640726,-500.0,0.00023125,2]
[383915163,1757172640738,-276.97603306,0.00023125,2]
[383915164,1757172640747,-500.0,0.00023125,2]
[383915165,1757172640758,-500.0,0.00023125,2]
[383915166,1757172640768,-500.0,0.00023125,2]
[383915167,1757172640778,-500.0,0.00023125,2]
[383915168,1757172640787,-500.0,0.00023125,2]
[383915169,1757172640796,-506.0666953,0.00023125,2]
[383915170,1757172640806,-499.50846771,0.00023125,2]
[383915171,1757172640816,-500.0,0.00023125,2]
[383915172,1757172640825,-165.20816345,0.00023125,2]
[383915173,1757172640836,-459.68436931,0.00023125,2]
[383915174,1757172640846,-500.0,0.00023125,2]
[383915175,1757172640856,-500.0,0.00023125,2]
[383915176,1757172640865,-500.0,0.00023125,2]
[383915177,1757172640875,-500.0,0.00023125,2]
[383915178,1757172640885,-500.0,0.00023125,2]
[383915179,1757172640894,-600.12192884,0.00023125,2]
[383915180,1757172640904,-500.0,0.00023125,2]
[383915181,1757172640913,-162.27,0.00023145,2]
[383915182,1757172640923,-3500.0,0.0002326,2]
[383915183,1757172640932,-3000.0,0.00023326,2]
[383915184,1757172640942,-200.0,0.000235,2]
[383915185,1757172640951,-1107.95550208,0.00023546,2]
[383915186,1757172640961,-22577.6770528,0.00023553,2]
[383915187,1757172640970,-587.0,0.00023599,2]
[383915188,1757172640980,-587.0,0.00023599,2]
[383915189,1757172640990,-1000.0,0.00023673,2]
[383915190,1757172641000,-1000.0,0.00023673,2]
[383915191,1757172641010,-509.30184334,0.00023673,2]
[383915192,1757172641020,-502.02687815,0.00023673,2]
[383915193,1757172641029,-1000.0,0.00023673,2]
[383915194,1757172641040,-1000.0,0.00023673,2]
[383915195,1757172641049,-1000.0,0.00023673,2]
[383915196,1757172641059,-1000.0,0.00023673,2]
[383915197,1757172641068,-530.99729813,0.00023673,2]
[383915198,1757172641078,-1000.0,0.00023673,2]
[383915199,1757172641087,-1000.0,0.00023673,2]
[383915200,1757172641097,-1000.0,0.00023673,2]
[383915201,1757172641106,-1000.0,0.00023673,2]
[383915202,1757172641116,-164.68075648,0.00023673,2]
[383915203,1757172641126,-1216.39750701,0.00023771,2]
[383915204,1757172641135,-787.11,0.00023784,2]
[383915205,1757172641145,-250.0,0.00023788,2]
[383915206,1757172641155,-4000.0,0.00023808,2]
[383915207,1757172641164,-3722.24,0.00023817,2]
[383915208,1757172641174,-2351.0,0.00023826,2]
[383915209,1757172641183,-1100.0,0.000239,8]
[383915210,1757172641192,-159.6,0.00023955,2]
[383915211,1757172641202,-7764.46,0.00023967,2]
[383915212,1757172641211,-162.27,0.00023971,2]
[383915213,1757172641221,-151.62,0.0002399,2]
[383915214,1757172641233,-87958.06108011,0.00024,5]
[383915215,1757172641245,-224.27,0.00024056,2]
[383915216,1757172641254,-1500.0,0.00024221,2]
[383915217,1757172641263,-1500.0,0.00024221,2]
[383915218,1757172641275,-813.99287529,0.00024221,2]
[383915219,1757172641284,-1500.0,0.00024221,2]
[383915220,1757172641294,-1500.0,0.00024221,2]
[383915221,1757172641304,-1500.0,0.00024221,2]
[383915222,1757172641315,-924.50618566,0.00024221,2]
[383915223,1757172641325,-1500.0,0.00024221,2]
[383915224,1757172641336,-1500.0,0.00024221,2]
[383915225,1757172641346,-4239.52900186,0.00024356,2]
[383915226,1757172641355,-1637.12807444,0.00024358,2]
[383915227,1757172641365,-211.61029534,0.0002466,2]
[383915228,1757172641375,-1298.60702229,0.00024769,2]
[383915229,1757172641384,-2000.0,0.00024769,2]
[383915230,1757172641394,-2000.0,0.00024769,2]
[383915231,1757172641406,-1004.18433716,0.00024769,2]
[383915232,1757172641416,-504.01242396,0.00024769,2]
[383915233,1757172641425,-2000.0,0.00024769,2]
[383915234,1757172641436,-162.82259609,0.00024769,2]
[383915235,1757172641446,-151.62,0.0002479,2]
[383915236,1757172641455,-162.27,0.00024798,2]
[383915237,1757172641465,-368678.730879,0.000248,2]
[383915238,1757172641475,-151.0,0.000248,7]
[383915239,1757172641485,-151.0,0.000248,7]
[383915240,1757172641495,-151.0,0.000248,7]
[383915241,1757172641505,-151.0,0.000248,7]
[383915242,1757172641515,-151.0,0.000248,7]
[383915243,1757172641525,-151.0,0.000248,7]
[383915244,1757172641534,-151.0,0.000248,7]
[383915245,1757172641544,-151.0,0.000248,7]
[383915246,1757172641553,-162.50781894,0.00024873,2]
[383915247,1757172641564,-500.0,0.00024873,2]
[383915248,1757172641574,-500.0,0.00024873,2]
[383915249,1757172641584,-216.04669433,0.00024873,2]
[383915250,1757172641594,-500.6086495,0.00024873,2]
[383915251,1757172641604,-500.0,0.00024873,2]
[383915252,1757172641614,-322.65447532,0.00024873,2]
[383915253,1757172641624,-163.71044344,0.00024873,2]
[383915254,1757172641634,-520.43489163,0.00024873,2]
[383915255,1757172641643,-521.57638762,0.0002488,7]
[383915256,1757172641652,-151.62,0.0002489,2]
[383915257,1757172641662,-1822.16175585,0.000249,2]
[383915258,1757172641672,-353447.582666,0.000249,2]
[383915259,1757172641682,-151.0,0.000249,7]
[383915260,1757172641691,-151.0,0.000249,7]
[383915261,1757172641700,-151.0,0.000249,7]
[383915262,1757172641710,-151.0,0.000249,7]
[383915263,1757172641719,-193.943864,0.000249,7]
[383915264,1757172641729,-257.43180458,0.000249,2]
[383915265,1757172641739,-152.811926,0.000249,7]
[383915266,1757172641748,-151.0,0.000249,7]
[383915267,1757172641758,-151.0,0.000249,7]
[383915268,1757172641768,-151.62,0.00024963,2]
[383915269,1757172641778,-159.552256,0.00024973,2]
[383915270,1757172641788,-159.5506592,0.00024973,2]
[383915271,1757172641798,-159.536288,0.00024973,2]
[383915272,1757172641808,-500.0,0.00024973,2]
[383915273,1757172641817,-500.0,0.00024973,2]
[383915274,1757172641827,-500.0,0.00024973,2]
[383915275,1757172641836,-500.0,0.00024973,2]
[383915276,1757172641846,-164.02018487,0.00024973,2]
[383915277,1757172641856,-538.64102639,0.00024973,2]
[383915278,1757172641865,-338.05398582,0.00024973,2]
[383915279,1757172641875,-500.0,0.00024973,2]
[383915280,1757172641885,-151.62,0.0002499,2]
[383915281,1757172641895,-151.62,0.0002499,2]
[383915282,1757172642077,-448152.55789406,0.00025,2]
[383915283,1757172642088,-203.2899522,0.00025,2]
[383915284,1757172642099,-1748.41203108,0.00025,2]
[383915285,1757172642109,-315.19109181,0.00025,2]
[383915286,1757172642119,-360.0,0.00025,2]
[383915287,1757172642129,-2981.74798249,0.00025,2]
[383915288,1757172642139,-3168.02983658,0.00025,2]
[383915289,1757172642149,-178.52795,0.00025,7]
[383915290,1757172642159,-15028.62226013,0.00025,2]
[383915291,1757172642170,-178.52795,0.00025,7]
[383915292,1757172642181,-151.596769,0.00025,7]
[383915293,1757172642191,-1042.5606643,0.00025,2]
[383915294,1757172642202,-178.52795,0.00025,7]
[383915295,1757172642212,-178.52795,0.00025,7]
[383915296,1757172642224,-5670.840407,0.00025,7]
[383915297,1757172642237,-163.86696777,0.00025,2]
[383915298,1757172642247,-10941.39606864,0.00025,15]
[383915299,1757172642257,-5670.840407,0.00025,7]
[383915300,1757172642267,-5670.840407,0.00025,7]
[383915301,1757172642276,-5670.840407,0.00025,7]
[383915302,1757172642286,-4253.71,0.00025,2]
[383915303,1757172642296,-766.482066,0.00025,7]
[383915304,1757172642306,-766.482066,0.00025,7]
[383915305,1757172642316,-766.482066,0.00025,7]
[383915306,1757172642326,-766.482066,0.00025,7]
[383915307,1757172642336,-151.0,0.00025,7]
[383915308,1757172642346,-151.0,0.00025,7]
[383915309,1757172642356,-151.0,0.00025,7]
[383915310,1757172642366,-151.0,0.00025,7]
[383915311,1757172642376,-151.0,0.00025,7]
[383915312,1757172642385,-151.0,0.00025,7]
[383915313,1757172642395,-15000.0,0.0002501,2]
[383915314,1757172642405,-1037.98293435,0.0002508,2]
[383915315,1757172642415,-224.27,0.0002515,2]
[383915316,1757172642425,-1826.29267021,0.00025317,2]
[383915317,1757172642435,-1293.31128108,0.00025317,2]
[383915318,1757172642444,-2500.0,0.00025317,2]
[383915319,1757172642454,-22577.6770528,0.00025379,2]
[383915320,1757172642464,-502.084834,0.00025421,2]
[383915321,1757172642474,-1000.0,0.00025421,2]
[383915322,1757172642485,-1000.0,0.00025421,2]
[383915323,1757172642495,-1000.0,0.00025521,2]
[383915324,1757172642505,-500.56041119,0.00025521,2]
[383915325,1757172642515,-409.3417178,0.00025521,2]
[383915326,1757172642525,-524.88728886,0.00025521,2]
[383915327,1757172642536,-1000.0,0.00025521,2]
[383915328,1757172642546,-173.61,0.00025616,2]
[383915329,1757172642556,-162.27,0.00025625,2]
[383915330,1757172642566,-823.0,0.00025699,2]
[383915331,1757172642576,-823.0,0.00025699,2]
[383915332,1757172642586,-2217.0,0.000257,7]
[383915333,1757172642595,-758.68,0.000257,7]
[383915334,1757172642605,-554.55,0.00025785,2]
[383915335,1757172642615,-2984.26149456,0.00025865,2]
[383915336,1757172642625,-1700.0,0.000259,9]
[383915337,1757172642635,-1500.0,0.00025968,2]
[383915338,1757172642645,-1500.0,0.00025968,2]
[383915339,1757172642655,-2231.83587156,0.00026,10]
[383915340,1757172642665,-1500.0,0.00026068,2]
[383915341,1757172642675,-1500.0,0.00026068,2]
[383915342,1757172642686,-3292.0,0.00026071,2]
[383915343,1757172642696,-322.1762136,0.00026159,2]
[383915344,1757172642706,-224.27,0.00026243,2]
[383915345,1757172642716,-250.0,0.00026293,2]
[383915346,1757172642726,-1637.12807444,0.00026304,2]
[383915347,1757172642736,-23802.18322213,0.000264,2]
[383915348,1757172642746,-162.27,0.00026451,2]
[383915349,1757172642756,-10545.07131152,0.000265,2]
[383915350,1757172642766,-513.67802562,0.00026516,2]
[383915351,1757172642776,-2000.0,0.00026516,2]
[383915352,1757172642786,-361.68437439,0.00026616,2]
[383915353,1757172642795,-2000.0,0.00026616,2]
[383915354,1757172642805,-1216.39750701,0.00026643,2]
[383915355,1757172642815,-17358.0,0.000269,2]
[383915356,1757172642825,-250.0,0.00027,2]
[383915357,1757172642835,-1012.91053864,0.00027,2]
[383915358,1757172642845,-3044.92392935,0.00027,2]
[383915359,1757172642855,-212.0757871,0.00027064,2]
[383915360,1757172642866,-528.0,0.00027137,2]
[383915361,1757172642877,-2500.0,0.00027164,2]
[383915362,1757172642886,-1107.95550208,0.00027191,12]
[383915363,1757172642896,-4253.71,0.000272,2]
[383915364,1757172642906,-22577.6770528,0.00027206,2]
[383915365,1757172642916,-162.27,0.00027278,2]
[383915366,1757172642926,-224.27,0.00027337,2]
[383915367,1757172642936,-4025.39230874,0.0002739,2]
[383915368,1757172642946,-7951.68578094,0.0002739,2]
[383915369,1757172642955,-3174.52649253,0.0002739,2]
[383915370,1757172642965,-150.0,0.0002739,2]
[383915371,1757172642975,-500.0,0.00027397,2]
[383915372,1757172642985,-363.18565302,0.00027397,2]
[383915373,1757172642995,-500.0,0.00027397,2]
[383915374,1757172643004,-500.0,0.00027397,2]
[383915375,1757172643014,-500.0,0.00027397,2]
[383915376,1757172643023,-700.0,0.00027397,2]
[383915377,1757172643034,-196.95998289,0.000275,2]
[383915378,1757172643043,-537.97772422,0.000275,2]
[383915379,1757172643053,-5513.0,0.000277,3]
[383915380,1757172643063,-3000.0,0.00027712,5]
[383915381,1757172643073,-1822.16175556,0.00027827,8]
[383915382,1757172643083,-1152.0,0.00027986,2]
[383915383,1757172643093,-1152.0,0.00027986,2]
[383915384,1757172643103,-23375.37085921,0.00028,2]
[383915385,1757172643112,-281.17,0.00028,2]
[383915386,1757172643122,-900.70742189,0.00028,2]
[383915387,1757172643132,-187.876552,0.00028035,7]
[383915388,1757172643142,-8865.80883555,0.000281,2]
[383915389,1757172643151,-2217.0,0.000281,7]
[383915390,1757172643161,-758.68,0.000281,7]
[383915391,1757172643171,-162.27,0.00028104,2]
[383915392,1757172643181,-1637.12807444,0.0002825,2]
[383915393,1757172643192,-3546.13634117,0.0002826,5]
[383915395,1757172643202,-253.27758308,0.00028369,2]
[383915397,1757172643211,-179.0145,0.00028395,2]
[383915399,1757172643222,-5513.0,0.000284,5]
[383915401,1757172643235,-224.27,0.0002843,2]
[383915402,1757172643244,-213.02,0.00028438,2]
[383915403,1757172643254,-151.0,0.0002845,7]
[383915404,1757172643263,-151.0,0.0002845,7]
[383915405,1757172643273,-151.0,0.0002845,7]
[383915406,1757172643285,-151.0,0.0002845,7]
[383915407,1757172643295,-186.14325,0.0002845,2]
[383915408,1757172643305,-4609.0,0.00028528,2]
[383915409,1757172643315,-364.23,0.00028579,30]
[383915410,1757172643325,-151.62,0.0002875,2]
[383915411,1757172643335,-12961.15006893,0.0002876,2]
[383915412,1757172643345,-1181.22904935,0.0002876,2]
[383915413,1757172643356,-162.27,0.00028931,2]
[383915414,1757172643366,-51081.81559959,0.00029,2]
[383915415,1757172643376,-1879.66101939,0.00029,2]
[383915416,1757172643386,-4253.71,0.00029,2]
[383915417,1757172643396,-22577.6770528,0.00029032,2]
[383915418,1757172643406,-1000.0,0.00029159,2]
[383915419,1757172643415,-188.82,0.00029302,2]
[383915420,1757172643425,-1216.39750701,0.00029514,2]
[383915421,1757172643435,-224.27,0.00029524,2]
[383915422,1757172643445,-162.27,0.00029758,2]
[383915423,1757172643455,-16532.20392199,0.0003,5]
[383915424,1757172643465,-1599.999999,0.0003,2]
[383915425,1757172643475,-4000.0,0.00030039,4]
[383915426,1757172643484,-1394.78,0.00030073,2]
[383915428,1757172643494,-200.0,0.00030127,2]
[383915429,1757172643504,-151.0,0.0003013,14]
[383915430,1757172643514,-160.0,0.00030133,7]
[383915431,1757172643524,-364.23,0.00030137,30]
[383915432,1757172643534,-500.0,0.00030164,2]
[383915433,1757172643543,-1637.12807444,0.00030197,2]
[383915434,1757172643553,-1613.0,0.00030477,2]
[383915435,1757172643563,-1208.0,0.00030477,2]
[383915436,1757172643573,-162.27,0.00030584,2]
[383915437,1757172643583,-1822.16175556,0.00030754,14]
[383915438,1757172643592,-2217.0,0.000308,7]
[383915439,1757172643603,-758.68,0.000308,30]
[383915440,1757172643613,-1107.95550208,0.00030837,23]
[383915441,1757172643624,-22577.6770528,0.00030859,2]
[383915442,1757172643634,-13052.43275964,0.00031,120]
[383915443,1757172643645,-1907.30083909,0.00031,2]
[383915444,1757172643655,-4253.71,0.000312,2]
[383915445,1757172643665,-4581.63202233,0.0003121,2]
[383915446,1757172643675,-6453.0,0.00031217,3]
[383915447,1757172643686,-4000.0,0.00031284,4]
[383915448,1757172643696,-14090.95280124,0.000314,30]
[383915449,1757172643705,-178.52795,0.000314,7]
[383915450,1757172643716,-178.52795,0.000314,7]
[383915451,1757172643726,-178.52795,0.000314,7]
[383915452,1757172643736,-178.52795,0.000314,7]
[383915453,1757172643747,-5670.840407,0.000314,7]
[383915454,1757172643756,-5670.840407,0.000314,7]
[383915455,1757172643767,-5670.840407,0.000314,7]
[383915456,1757172643777,-5670.840407,0.000314,7]
[383915457,1757172643788,-766.482066,0.000314,7]
[383915458,1757172643799,-766.482066,0.000314,7]
[383915459,1757172643808,-766.482066,0.000314,7]
[383915460,1757172643818,-766.482066,0.000314,7]
[383915461,1757172643828,-162.27,0.00031411,2]
[383915462,1757172643837,-150.0,0.000315,2]
[383915463,1757172643847,-200.0,0.00031532,2]
[383915464,1757172643857,-151.0,0.00031532,2]
[383915465,1757172643867,-600.0,0.00031532,2]
[383915466,1757172643878,-151.0,0.00031532,2]
[383915467,1757172643888,-151.0,0.00031532,2]
[383915468,1757172643898,-600.0,0.00031532,2]
[383915469,1757172643909,-151.0,0.00031532,2]
[383915470,1757172643919,-151.0,0.00031532,2]
[383915471,1757172643929,-600.0,0.00031532,2]
[383915472,1757172643938,-200.0,0.00031532,2]
[383915473,1757172643949,-151.0,0.00031532,2]
[383915474,1757172643958,-151.0,0.00031532,2]
[383915475,1757172643968,-600.0,0.00031532,2]
[383915476,1757172643978,-151.0,0.00031532,2]
[383915477,1757172643989,-151.0,0.00031532,2]
[383915478,1757172643999,-600.0,0.00031532,2]
[383915479,1757172644009,-151.0,0.00031532,2]
[383915480,1757172644019,-151.0,0.00031532,2]
[383915481,1757172644029,-600.0,0.00031532,2]
[383915482,1757172644039,-151.0,0.00031532,2]
[383915483,1757172644049,-151.0,0.00031532,2]
[383915484,1757172644059,-600.0,0.00031532,2]
[383915485,1757172644070,-151.0,0.00031532,2]
[383915486,1757172644080,-151.0,0.00031532,2]
[383915487,1757172644089,-600.0,0.00031532,2]
[383915488,1757172644099,-151.0,0.00031532,2]
[383915489,1757172644109,-600.0,0.00031532,2]
[383915490,1757172644119,-151.0,0.00031532,2]
[383915491,1757172644128,-151.0,0.00031532,2]
[383915492,1757172644138,-600.0,0.00031532,2]
[383915493,1757172644148,-151.0,0.00031532,2]
[383915494,1757172644158,-151.0,0.00031532,2]
[383915495,1757172644167,-600.0,0.00031532,2]
[383915496,1757172644178,-151.0,0.00031532,2]
[383915497,1757172644187,-151.0,0.00031532,2]
[383915498,1757172644197,-600.0,0.00031532,2]
[383915499,1757172644206,-201.25542629,0.00031532,2]
[383915500,1757172644216,-475.35448903,0.00031532,2]
[383915501,1757172644226,-151.0,0.00031532,2]
[383915502,1757172644239,-151.0,0.00031532,2]
[383915503,1757172644248,-151.0,0.00031532,2]
[383915504,1757172644258,-200.0,0.00031532,2]
[383915505,1757172644268,-500.0,0.00031532,2]
[383915506,1757172644277,-500.0,0.00031532,2]
[383915507,1757172644287,-500.0,0.00031532,2]
[383915508,1757172644298,-500.0,0.00031532,2]
[383915509,1757172644308,-500.0,0.00031532,2]
[383915510,1757172644319,-500.0,0.00031532,2]
[383915511,1757172644328,-500.0,0.00031532,2]
[383915512,1757172644338,-500.0,0.00031532,2]
[383915513,1757172644348,-500.0,0.00031532,2]
[383915514,1757172644653,-500.0,0.00031532,2]
[383915515,1757172644666,-500.0,0.00031532,2]
[383915516,1757172644675,-500.0,0.00031532,2]
[383915517,1757172644685,-500.0,0.00031532,2]
[383915518,1757172644694,-1000.0,0.00031536,30]
[383915519,1757172644703,-8487.55,0.00031551,2]
[383915520,1757172644713,-150.0,0.00031573,2]
[383915521,1757172644723,-1244.152,0.00031573,29]
[383915522,1757172644733,-161.97,0.00031584,30]
[383915523,1757172644743,-500.0,0.00031587,2]
[383915524,1757172644752,-160.0,0.00031638,2]
[383915525,1757172644761,-514.85095374,0.00031638,2]
[383915526,1757172644771,-500.0,0.00031642,2]
[383915527,1757172644782,-175.8,0.00031652,120]
[383915528,1757172644793,-666.0,0.00031654,3]
[383915529,1757172644803,-364.23,0.00031663,30]
[383915530,1757172644814,-220.641811,0.00031681,7]
[383915531,1757172644824,-229.801574,0.00031681,7]
[383915532,1757172644834,-5000.0,0.00031684,2]
[383915533,1757172644844,-500.0,0.00031697,2]
[383915534,1757172644854,-787.11,0.00031713,120]
[383915535,1757172644864,-500.0,0.00031752,2]
[383915536,1757172644874,-348.56,0.00031768,2]
[383915537,1757172644884,-500.0,0.00031807,2]
[383915538,1757172644894,-411.99607889,0.0003186,120]
[383915539,1757172644903,-500.0,0.00031862,2]
[383915540,1757172644913,-2096.36,0.00031874,2]
[383915541,1757172644923,-151.62,0.00031908,2]
[383915542,1757172644933,-500.0,0.00031917,2]
[383915543,1757172644943,-200.0,0.00031927,2]
[383915544,1757172644953,-500.0,0.00031972,2]
[383915545,1757172644963,-2012.35023504,0.00032,2]
[383915546,1757172644972,-500.0,0.00032027,2]